Cogmind - Beta 15 @@@ ROGUE MODE // 2025.05.06 @ 22:45:14 Player: Rotpup_ Result: Destroyed by Y-45 Defender with Beam Rifle Performance ------------- Evolutions (2) 1000 Regions Visited (4) 800 Robots Destroyed (58) 290 Value Destroyed (1631) 1631 Prototype IDs (4) 80 Alien Tech Used (0) 0 Bonus (0) 0 TOTAL SCORE: 3801 Bonus ------- None Cogmind --------- Core Integrity 0/550 Matter 143/300 Energy 96/100 System Corruption 0% Temperature Cool (18) Movement Rolling (80) Location -8/Materials Parts ------- > --- POWER (1) -------- (None) > --- PROPULSION (2) --- Wheel Wheel > --- UTILITY (6) ------ Medium Storage Unit Signal Interpreter Improved Targeting Computer Hacking Suite > --- WEAPON (2) ------- (None) > --- INVENTORY (10) --- Light Nuclear Core Improved VTOL Module Gravity Neutralizer Hacking Suite System Shield System Shield System Shield Peak State ------------ > --- POWER ------------ Light Nuclear Core > --- PROPULSION ------- Airjet Airjet > --- UTILITY ---------- Medium Storage Unit Sensor Array Signal Interpreter Targeting Computer Improved Targeting Computer Hacking Suite > --- WEAPON ----------- Gauss Cannon Gauss Cannon > --- INVENTORY -------- Light Nuclear Core Improved VTOL Module Gravity Neutralizer Hacking Suite System Shield System Shield System Shield Heavy Rocket Launcher Hammer [Rating: 29] Favorites ----------- Power Ion Engine Engine Ion Engine Power Core Light Nuclear Core Propulsion Light Treads Treads Light Treads Wheel Wheel Hover Unit Airjet Flight Unit Improved VTOL Module Utility Medium Storage Unit Device Sensor Array Storage Medium Storage Unit Processor Targeting Computer Hackware Hacking Suite Protection Light Armor Plating Weapon Assault Rifle Energy Gun EM Pulse Gun Ballistic Gun Assault Rifle Ballistic Cannon Light Cannon Launcher Heavy Rocket Launcher Impact Weapon Hammer Build | -11 -10 -9 -9 -8 ------- Run | Yrd Mat Mat Sto Mat Slots Evolved 4 | . . 2 . 2 Power . | . . . . . Propulsion . | . . . . . Utility 4 | . . 2 . 2 Weapon . | . . . . . Parts Attached 49 | 10 6 2 13 18 Power 9 | 1 2 . 3 3 Engine 6 | 1 2 . 3 . Core 3 | . . . . 3 Reactor . | . . . . . Propulsion 10 | 4 . . 1 5 Treads 2 | 2 . . . . Leg . | . . . . . Wheel 5 | 2 . . 1 2 Hover 2 | . . . . 2 Flight 1 | . . . . 1 Utility 15 | 2 2 2 5 4 Device 8 | 1 1 . 4 2 Storage 2 | 1 1 . . . Processor 3 | . . 1 1 1 Hackware 1 | . . . . 1 Protection 1 | . . 1 . . Artifact . | . . . . . Weapon 15 | 3 2 . 4 6 Energy Gun 1 | 1 . . . . Energy Cannon . | . . . . . Ballistic Gun 8 | 2 1 . 2 3 Ballistic Cannon 4 | . 1 . 1 2 Launcher 1 | . . . . 1 Special Weapon . | . . . . . Impact Weapon 1 | . . . 1 . Slashing Weapon . | . . . . . Piercing Weapon . | . . . . . Special Melee Weapon . | . . . . . Unidentified Prototypes 4 | . . . 3 1 Parts Lost 18 | . 2 . 4 12 Power 3 | . 1 . 1 1 Propulsion 4 | . . . . 4 Utility 5 | . 1 . 1 3 Weapon 6 | . . . 2 4 Highest Loss Streak 9 | . 1 . 2 9 To Critical Strikes . | . . . . . Average Backups 8 | 3 7 7 8 9 Power . | . . 1 . 1 Propulsion 2 | 1 2 3 2 1 Utility 2 | . 1 . 2 3 Weapon 2 | . 2 3 3 3 Tool/Special . | . . . . . Unused Backups 12 | . 1 1 . 10 Power 1 | . . . . 1 Propulsion 1 | . . . . 1 Utility 5 | . 1 . . 4 Weapon 5 | . . 1 . 4 Tool/Special . | . . . . . Average Slot Usage (%) 97 | . 97 99 97 95 Engine 8 | . 13 11 10 1 Core 2 | . . . . 6 Treads 13 | . 25 22 12 . Wheel 7 | . 2 . 8 14 Device 12 | . 13 11 11 12 Storage 11 | . 14 11 11 9 Processor 12 | . . 11 18 21 Hackware 2 | . . . . 8 Protection 1 | . . 10 2 . Energy Gun 1 | . 3 . . . Ballistic Gun 13 | . 20 11 6 10 Ballistic Cannon 6 | . 2 11 13 4 Peak Build Rating 29 | 7 9 11 16 29 Average Rating 13 | 5 8 10 11 22 On Entrance 8 | . 7 9 11 15 Naked Turns . | . . . . . Heaviest Build 32 | 15 21 24 32 31 Greatest Support 40 | 40 40 40 40 20 Greatest Overweight (x) 9 | . 1 . 1 9 Average Overweight (x) . | . . . . 1 Largest Inventory Capacity 10 | 8 10 10 10 10 Average Capacity 9 | 7 8 10 10 10 Most Carried 10 | 7 9 8 10 10 Average Carried 8 | 4 7 7 8 9 Final Capacity 10 | 8 10 10 10 10 Final Carried 10 | 6 9 7 10 7 Class Distribution -------------------- 82% | Mutant 17% | Scavenger-Mutant Dominant Class ---------------- Mutant | -10/Materials Mutant | -9/Materials Mutant | -9/Storage Mutant | -8/Materials Resources | -11 -10 -9 -9 -8 ----------- Run | Yrd Mat Mat Sto Mat Matter Collected 1666 | 201 385 48 480 552 Remotely . | . . . . . Salvage Created 1966 | 105 418 48 549 846 Parts 110 | 5 22 8 38 37 Haulers Intercepted 1 | . 1 . . . Recyclers Shooed 2 | . . . . 2 Parts Field Recycled 11 | . . . 11 . Retrieved Matter 39 | . . . 39 . Parts Self-Destructed . | . . . . . Prevented . | . . . . . Kills | -11 -10 -9 -9 -8 ------- Run | Yrd Mat Mat Sto Mat Combat Hostiles Destroyed 46 | . 8 5 18 15 Guns 21 | . 8 2 1 10 Cannons 23 | . . 3 17 3 AOE 1 | . . . . 1 Classes Destroyed 11 | 2 3 1 3 2 Worker 1 | . . . 1 . Builder 1 | . . . . 1 Tunneler 1 | 1 . . . . Hauler 1 | . 1 . . . Recycler 4 | 1 . . . 3 Operator 1 | . . . 1 . Watcher 3 | . 1 . 2 . Swarmer 12 | . . 4 5 3 Grunt 26 | . 8 1 11 6 Sentry 6 | . . . 2 4 Hunter 2 | . . . . 2 Best Kill Streak 6 | 2 2 4 5 6 Combat Bots Only 6 | . 2 4 4 6 Max Kills in Single Turn 3 | 1 1 1 1 3 Gunslinging . | . . . . . Exploded 1 | . . . . 1 Melee . | . . . . . Uniques/NPCs Destroyed . | . . . . . Combat | -11 -10 -9 -9 -8 -------- Run | Yrd Mat Mat Sto Mat Hostile Shots Fired 324 | . 31 48 61 184 Missed 80 | . 6 13 21 40 Hits 244 | . 25 35 40 144 Projectile 244 | . 25 35 40 144 Critical Strikes 9 | . . 1 1 7 Damage Taken 3041 | . 318 342 455 1926 Core 747 | . 104 31 60 552 Absorbed by Shields 224 | . . . . 224 Regen/Repaired (Parts) 118 | . . . 118 . Core Remaining (%) 78 | 100 58 . 77 . Volleys Fired 165 | 4 29 20 46 66 Largest 2 | 2 2 2 2 2 Hottest 80 | 60 50 50 63 80 Shots Fired 294 | 8 58 40 76 112 Gun 164 | 8 44 20 10 82 Cannon 129 | . 14 20 66 29 Launcher 1 | . . . . 1 Special . | . . . . . Kinetic 289 | 4 58 40 76 111 Thermal . | . . . . . Explosive 1 | . . . . 1 Electromagnetic 4 | 4 . . . . Robot Hit Streak 19 | 3 10 19 6 13 Robot Miss Streak 4 | 3 2 3 4 4 Penetration Max 1 | . . . . 1 Secondary Targets 1 | . . . . 1 Max Gunslinging Chain 1 | . . . . 1 Shots Hit Robots 195 | 4 41 29 47 74 Core Hits 87 | 3 20 6 23 35 Critical Kills 1 | . . . . 1 Critical Parts Destroyed 1 | . . . . 1 Critical Strikes 6 | . . . 1 5 Destroy 2 | . . . . 2 Blast 4 | . . . 1 3 Melee Attacks 7 | . . . 2 5 Impact 7 | . . . 2 5 Slashing . | . . . . . Piercing . | . . . . . Sneak Attacks . | . . . . . Combat Hostiles . | . . . . . Follow-up Attacks . | . . . . . Damage Inflicted 3505 | 51 556 430 879 1589 Guns 1599 | 51 423 179 76 870 Cannons 1598 | . 133 251 803 411 Explosions 220 | . . . . 220 Melee 88 | . . . . 88 Ramming . | . . . . . Kinetic 3185 | 39 556 430 879 1281 Thermal . | . . . . . Explosive 220 | . . . . 220 Electromagnetic 12 | 12 . . . . Impact 88 | . . . . 88 Slashing . | . . . . . Piercing . | . . . . . Highest Corruption 3 | . . . 3 . Average Corruption 2 | . . . 2 . Corruption Purged . | . . . . . Corruption Blocked . | . . . . . Effects 1 | . . . 1 . Matter Fused 1 | . . . 1 . Overload Shots . | . . . . . Overflow Damage 36 | . . 10 11 15 Projectiles 21 | . . 10 11 . Explosions 1 | . . . . 1 Melee 14 | . . . . 14 Knockbacks 12 | . . 5 6 1 Impact . | . . . . . Kinetic 10 | . . 4 5 1 Secondary 2 | . . 1 1 . Self-Inflicted Damage 28 | . . . . 28 Shots 1 | . . . . 1 Rammed . | . . . . . Targets Rammed . | . . . . . Kicked . | . . . . . Crushed . | . . . . . Highest Temperature 241 | . 2 . 27 241 Average Temperature 58 | . 2 . 9 86 Received Heat Transfer 1285 | . 171 96 141 877 Siege Activations . | . . . . . Martial Activations . | . . . . . Shielding Activations . | . . . . . Robots Disrupted . | . . . . . Combat Hostiles . | . . . . . Robots Corrupted 1 | . . . . 1 Combat Hostiles 1 | . . . . 1 Parts Fried . | . . . . . Impact Corruptions 1 | . . . . 1 Robots Melted . | . . . . . Combat Hostiles . | . . . . . Parts Melted . | . . . . . Heat Transferred . | . . . . . Parts Sabotaged . | . . . . . Parts Stolen . | . . . . . Parts Stripped . | . . . . . Power Chain Reactions . | . . . . . Alert | -11 -10 -9 -9 -8 ------- Run | Yrd Mat Mat Sto Mat Maximum Alert Level 1 | . . . 1 . Low Security (%) 95 | 100 100 100 80 100 Level 1 4 | . . . 19 . Level 2 . | . . . . . Level 3 . | . . . . . Level 4 . | . . . . . Level 5 . | . . . . . High Security . | . . . . . Max Security . | . . . . . Peak Influence 304 | 10 92 101 304 146 Initial 65 | . . 1 38 65 Average 59 | . 24 28 128 58 Influence Increases 1449 | 10 221 141 592 485 Destroy 0b10 Robot/C 920 | . 160 100 360 300 Destroy 0b10 Robot/NC 60 | 10 10 . 20 20 Destroy Leader 208 | . 34 10 74 90 Successful Hack 52 | . 17 . 30 5 Disable Machine 60 | . . 15 30 15 Destroy Structure 29 | . . 1 3 25 Lose Combat Pursuer 120 | . . 15 75 30 Influence Decreases 1399 | 10 215 56 527 591 Entered New Map 149 | . . 5 53 91 Time Decay 940 | 10 205 51 294 380 Lost Part 160 | . 10 . 30 120 Purge Threat 150 | . . . 150 . Squads Dispatched 9 | . 1 1 5 2 Investigation 4 | . . . 2 2 Extermination . | . . . . . Reinforcement 3 | . 1 1 1 . Assault . | . . . . . Garrison 2 | . . . 2 . Intercept . | . . . . . Searches Triggered . | . . . . . Construction Impeded . | . . . . . Haulers Reinforced . | . . . . . Active Scanning Responses . | . . . . . Cargo Convoy Interrupts . | . . . . . Stealth | -11 -10 -9 -9 -8 --------- Run | Yrd Mat Mat Sto Mat Distress Signals 3 | . . . 1 2 Communications Jammed . | . . . . . Distress Signals . | . . . . . Times Spotted 74 | . 14 9 27 24 Peak Tracking Total 7 | . 4 5 4 7 Tactical Retreats 6 | . . 1 4 1 Traps | -11 -10 -9 -9 -8 ------- Run | Yrd Mat Mat Sto Mat Traps Triggered 6 | . 2 . 4 . Indirectly . | . . . . . Trap Hack Attempts . | . . . . . Triggered . | . . . . . Disarmed 6 | . 6 . . . Reprogrammed . | . . . . . Reused . | . . . . . Traps Extracted . | . . . . . Installed . | . . . . . Triggered . | . . . . . Machines | -11 -10 -9 -9 -8 ---------- Run | Yrd Mat Mat Sto Mat Machines Disabled 4 | . . 1 2 1 Max in Single Turn 1 | . . 1 1 1 Machines Repaired . | . . . . . Machines Dismantled . | . . . . . Machines Sabotaged . | . . . . . Overloaded Fab Kills . | . . . . . Hacking | -11 -10 -9 -9 -8 --------- Run | Yrd Mat Mat Sto Mat Machines Accessed 16 | . 4 . 6 6 Terminals 14 | . 4 . 4 6 Fabricators . | . . . . . Repair Stations 1 | . . . 1 . Recycling Units 1 | . . . 1 . Scanalyzers . | . . . . . Garrison Access . | . . . . . Total Hacks 54 | . 13 . 26 15 Successful 32 | . 7 . 16 9 Failed 22 | . 6 . 10 6 Catastrophic 4 | . . . 2 2 Database Lockouts . | . . . . . Manual 38 | . 12 . 14 12 Terminals 47 | . 13 . 19 15 Fabricators . | . . . . . Repair Stations 3 | . . . 3 . Recycling Units 4 | . . . 4 . Scanalyzers . | . . . . . Garrison Access . | . . . . . Terminal Hacks 11 | . 3 . 6 2 Part Schematic 1 | . 1 . . . Open Door 1 | . . . 1 . Level Access Points 1 | . . . 1 . Alert Level 3 | . 1 . 2 . Unreport Threat 1 | . . . 1 . Disarm Traps 1 | . 1 . . . Reinforcement Status 1 | . . . 1 . Zone Layout 2 | . . . . 2 Fabricator Hacks . | . . . . . Repair Station Hacks 3 | . . . 3 . Scan Component 2 | . . . 2 . Repair 1 | . . . 1 . Recycling Unit Hacks 4 | . . . 4 . Recycle Component 1 | . . . 1 . Process 1 | . . . 1 . Report Inventory 1 | . . . 1 . Retrieve Matter 1 | . . . 1 . Scanalyzer . | . . . . . Garrison Access Hacks . | . . . . . Unauthorized Hacks 14 | . 4 . 3 7 Terminals 14 | . 4 . 3 7 Botnet 12 | . 3 . 3 6 Operators 2 | . 1 . . 1 Fabricators . | . . . . . Repair Stations . | . . . . . Recycling Units . | . . . . . Scanalyzers . | . . . . . Garrison Access . | . . . . . Data Cores Recovered . | . . . . . Used . | . . . . . Hacking Detections 14 | . 4 . 5 5 Full Trace Events 6 | . . . 3 3 Feedback Events . | . . . . . Feedback Blocked . | . . . . . Robot Schematics Acquired . | . . . . . Robots Built . | . . . . . Authchips . | . . . . . Time . | . . . . . Total Robot Build Rating . | . . . . . Part Schematics Acquired 1 | . 1 . . . Parts Built . | . . . . . Authchips . | . . . . . Time . | . . . . . Total Part Build Rating . | . . . . . Parts Repaired 1 | . . . 1 . Time 26 | . . . 26 . Parts Recycled 1 | . . . 1 . Recycled Matter 37 | . . . 37 . Retrieved Matter 37 | . . . 37 . Retrieved Components . | . . . . . Parts Scanalyzed . | . . . . . Part Schematics Acquired . | . . . . . Parts Damaged . | . . . . . Bothacking | -11 -10 -9 -9 -8 ------------ Run | Yrd Mat Mat Sto Mat Used RIF Installer . | . . . . . Robots Hacked . | . . . . . Non-combat . | . . . . . Combat . | . . . . . Robot Hacks Applied . | . . . . . Relay Couplers Released . | . . . . . Fabnet Peak Effective % . | . . . . . Robots Rewired . | . . . . . Allies Hacked . | . . . . . Hacks Repelled . | . . . . . Allies | -11 -10 -9 -9 -8 -------- Run | Yrd Mat Mat Sto Mat Total Allies . | . . . . . Largest Group . | . . . . . Highest-Rated Group . | . . . . . Highest-Rated Ally . | . . . . . Total Orders . | . . . . . Ally Attacks . | . . . . . Total Damage . | . . . . . Kills . | . . . . . Allies Corrupted . | . . . . . Allies Melted . | . . . . . Intel | -11 -10 -9 -9 -8 ------- Run | Yrd Mat Mat Sto Mat Active Infowar (turns) 1619 | 1 398 . 393 827 Sensors 1220 | . . . 393 827 Seismic 399 | 1 398 . . . Robot Analysis Total . | . . . . . Derelict Logs Recovered . | . . . . . Drone Launches . | . . . . . Drone Recoveries . | . . . . . Exploration | -11 -10 -9 -9 -8 ------------- Run | Yrd Mat Mat Sto Mat Turns Passed 2807 | 110 990 144 674 889 Spaces Moved 1624 | 66 521 43 375 619 Core 24 | 14 . . . 10 Treads 770 | 33 520 43 174 . Legs . | . . . . . Wheels 782 | 19 1 . 201 561 Hover 48 | . . . . 48 Flight . | . . . . . Fastest Speed 50 | 50 95 160 95 80 Average Speed 126 | 113 159 160 125 99 Slowest Speed 500 | 160 160 160 160 500 Overloaded Moves . | . . . . . Propulsion Burnouts . | . . . . . Robots Hopped . | . . . . . Potential Cave-ins . | . . . . . Cave-ins Triggered . | . . . . . Exploration Rate (%) 35 | 5 66 9 48 48 Regions Visited 4 Branch Regions 1 Pre-discovered Areas . | . . . . . Known Exits Taken 1 | . . . 1 . Unknown Exits Taken 3 | 1 1 1 . . Scrap Searched . | . . . . . Spaces Dug 3 | . . . . 3 Terrain Destroyed 26 | . . . 1 25 Melee 1 | . . . . 1 Projectile 18 | . . . 1 17 AOE 7 | . . . . 7 Terrain Rammed . | . . . . . Walls Destroyed . | . . . . . Machines Disabled . | . . . . . Actions | -11 -10 -9 -9 -8 --------- Run | Yrd Mat Mat Sto Mat Total 2063 | 91 619 79 499 775 Wait 112 | . 48 13 31 20 Move 1620 | 65 520 42 374 619 Hop . | . . . . . Pick Up 59 | 12 8 1 17 21 Fast Attach 7 | 1 4 . . 2 Attach 23 | 6 2 2 5 8 Detach . | . . . . . Swap 38 | 3 4 . 15 16 Drop 32 | . 4 1 9 18 Fire 165 | 4 29 20 46 66 Melee 7 | . . . 2 5 Ram . | . . . . . Kick . | . . . . . Crush . | . . . . . Escape Stasis . | . . . . . Rewire . | . . . . . Trap . | . . . . . Miscellaneous . | . . . . . Route ------- -11/Scrapyard -10/Materials (discovered 3 exits: [*Mat] / [*Min] / [*Sub]) -9/Materials -9/Storage -8/Materials (discovered 1 exit: *Fac) History --------- Turn | Location | Event 2 | -11/Scrapyard | Met Revision 17 22 | -11/Scrapyard | Discovered new exit (range 14) 111 | -11/Scrapyard | Entered Materials 112 | -10/Materials | Met a group of wandering Federalists 177 | -10/Materials | Discovered new exit (range 10) 302 | -10/Materials | Build established: Mutant 411 | -10/Materials | Discovered new exit (range 16) 1077 | -10/Materials | Discovered new exit (range 16) 1101 | -10/Materials | Entered another Materials area 1101 | -9/Materials | Evolved 2 slots: Utility x2 1190 | -9/Materials | Discovered new exit (range 5) 1245 | -9/Materials | Entered Storage 1324 | -9/Storage | Repaired Lgt. Treads 1778 | -9/Storage | Garrison activated, responded to threat 1821 | -9/Storage | Identified exit to Materials 1919 | -9/Storage | Entered Materials 1919 | -8/Materials | Evolved 2 slots: Utility x2 2363 | -8/Materials | Build established: Scavenger-Mutant 2403 | -8/Materials | Discovered new exit (range 6) 2418 | -8/Materials | Identified exit to Factory 2686 | -8/Materials | Build established: Mutant 2767 | -8/Materials | Core integrity fell below 50% 2787 | -8/Materials | Core integrity fell below 20% 2808 | -8/Materials | Destroyed by Y-45 Defender with Beam Rifle Last Messages --------------- 02768_ U-05 Engineer destroyed. 02768_ R-06 Scavenger destroyed. 02769_ The unstable cave ceiling collapses. 02776_ Critical hit (Burn: +37). 02776_ Acquired 89 matter. 02777_ Hvy. Rocket Launcher destroyed. 02781_ U-05 Engineer builds a Wall. 02783_ Destroyed Lgt. Nuclear Core. 02783_ G-47 Trooper system corrupted by crushing effect. 02784_ G-47 Trooper system terminally corrupted. 02785_ Acquired 44 matter. 02786_ Acquired 30 matter. 02786_ U-05 Engineer builds a Wall. 02790_ Acquired Wheel. 02792_ Critical hit (Burn: +37). 02795_ Acquired Wheel. 02802_ Critical hit (Burn: +37). 02805_ Hammer destroyed. 02806_ The unstable cave ceiling collapses. Map ----- +----------------------------------------------------+ | | | ?????????????????????????????????????????????????? | | ?????????????????????????????????????????????????? | | ?????????????????????????????????????????????????? | | ?????????????????????????????????????????????????? | | ?????????????????????????????????????????????????? | | ?????????????????????????????????????????????????? | | ?????????????????????????????????????????????????? | | ?????????????????????????????????????????????????? | | ?????????????????????????????????????????????????? | | ?????????????????????????????????????????????????? | | #############????????????????????????????????????? | | + #????????????????????????????????????? | | T # """ [ #??????????????????#?????????????????? | | # """ #????????????????? #?????????????????? | | # """ #????????????????? #?????????????????? | | = # "" #???????????????? #?????????????????? | | # S"" #???????????????? #?????????????????? | | ### "" #???????????????? #?????????????????? | | ?## #????##########? #?????????????????? | | #######+########## ## #?????????????????? | | ##% g ## ##????????????????? | | %Y # #########????????? | | ########+##### ##; ! !! % ???????? | | ## T # ### === =%= ???????? | | T ## # #?# @ %![ u ???????? | | ## """ """ # #?# * #;#####??????o???? | | ## """ """ # #?# #####????????????????? | | ## """ """ # #?# # # """ ???????????????? | | " ## # #?#########;## "Y" ??????????????? | | " ## ! [ # #??????????# # ""?????????????? | | " ## [# #???????????##? ???????????????? | | ############+#??????????????? "??????????????? | | # #??????????????? ?????????????? | | ? # """ """ #???????????????? ?????????????? | | ??# """ """ #????????????????? ?????????????? | | ??# """ """ #????????????????#+################ | | ??# #???????????????# / | | #######+########???????????????# ##### ##### ! | | #??????????????????????# #?????????# | | #??????????????????????+ #?????????# """ | | #########???##????# # # ??# """ | | #####??????? #????# # # ??# """ | | #??????? #???#####?######### # """ """?# | | """ #??????? #???# # # """ ""??# """ | | """"#??????? #???# """ # + """ ""??# """ | | """"#??????? #???# """ # # ??# """ | | """"#??????? #???# """ + ^ # ??# | | """ #??????? #???# # # ??# | | #??????? #???# # """ ###/########### | +----------------------------------------------------+ Best States ------------- Heat Dissipation 52 Energy Generation 14 Energy Capacity 280 Matter Stores 300 Matter Capacity 300 Sight Range 16 Robot Scan Range 14 Terrain Scan Density 10 Armor Coverage 150 Evasion (%) 50 Targeting Accuracy 11 Recoil Reduction 2 Offensive Hacking 10 Item Schematics ----------------- Huge Storage Unit | -10/Materials | Hacked Robot Schematics ------------------ None Fabricated ------------ Nothing Repaired ---------- Lgt. Treads | 15% | -9/Storage Alien Tech Used ----------------- None Achievements -------------- None Challenges ------------ None Game ------ Seed JammingGrapheneDrive Manual? 0 Play Time 00:51:13 Cumulative 12.3 hours Start 2025.05.06 @ 21:42:14 End 2025.05.06 @ 22:45:14 Sessions 1 Manual Loads 0 Difficulty Rogue Special Mode None Game No. 32 Rogue 31 Adventurer 0 Explorer 1 Win Type - Total 0 Types 0/0/0/0/0/0/0/0/0/0 Lore% 9 Gallery% 20 Achievement% 21 Wizard Run 0 Options --------- Layout 1 ASCII 0 Keyboard 0 Movement Mouse Keybinds 0 Fullscreen 2 Font 24/Smallcaps Map View 50x35 Zoom Use 0% Tactical HUD 1 Map Filters NONE Filters NONE Steam 1 RUN: 32a5306d-4ee9-4c11-9cd7-87ede610b4df